Cogmind - Beta 13 @@@ ROGUE MODE // 2024.04.05 @ 21:12:09 Player: Rizzen Result: Destroyed by Y-45 Defender with Beam Rifle Performance ------------- Evolutions (1) 500 Regions Visited (3) 600 Robots Destroyed (99) 495 Value Destroyed (2386) 2386 Prototype IDs (8) 160 Alien Tech Used (0) 0 Bonus (227) 227 TOTAL SCORE: 4368 Bonus ------- High Alert Combat Kills 227 Cogmind --------- Core Integrity 0/400 Matter 300/300 Energy 274/280 System Corruption 0% Temperature Cool (12) Movement Treading (160) Location -9/Storage Parts ------- > --- POWER (1) -------- Heavy Ion Engine > --- PROPULSION (3) --- Light Treads Light Treads Improved Treads > --- UTILITY (3) ------ Large Storage Unit Medium Armor Plating Hacking Suite > --- WEAPON (2) ------- Heavy Assault Rifle Heavy Assault Rifle > --- INVENTORY (15) --- Heavy Ion Engine Light Treads Light Treads Light Treads Cooling System Signal Interpreter Advanced Targeting Computer Advanced Targeting Computer Medium Armor Plating Hacking Suite Hacking Suite Hacking Suite Heavy Assault Rifle Rocket Launcher Peak State ------------ > --- POWER ------------ Improved Ion Engine > --- PROPULSION ------- Improved Treads Improved Treads Improved Treads > --- UTILITY ---------- Large Storage Unit Hacking Suite Hacking Suite > --- WEAPON ----------- Autogun Autogun > --- INVENTORY -------- Ion Engine Ion Engine Light Treads Improved Treads Improved Heat Sink Signal Interpreter Signal Interpreter Targeting Computer ECM Suite Light Armor Plating Hacking Suite Autogun Autogun Rocket Launcher Rocket Launcher [Rating: 21] Favorites ----------- Power Heavy Ion Engine Engine Heavy Ion Engine Propulsion Light Treads Treads Light Treads Utility Hacking Suite Device Seismic Detector Storage Large Storage Unit Processor Signal Interpreter Hackware Hacking Suite Protection Medium Armor Plating Weapon Heavy Assault Rifle Ballistic Gun Heavy Assault Rifle Launcher Rocket Launcher Slashing Weapon Mining Claw Build | -11 -10 -9 -9 ------- Run | Yrd Mat Mat Sto Slots Evolved 2 | . . 2 . Power . | . . . . Propulsion 1 | . . 1 . Utility 1 | . . 1 . Weapon . | . . . . Parts Attached 67 | 7 15 41 4 Power 10 | 1 3 6 . Engine 10 | 1 3 6 . Core . | . . . . Reactor . | . . . . Propulsion 22 | 2 2 16 2 Treads 22 | 2 2 16 2 Leg . | . . . . Wheel . | . . . . Hover . | . . . . Flight . | . . . . Utility 13 | 2 3 7 1 Device 1 | 1 . . . Storage 4 | 1 2 1 . Processor 2 | . 1 1 . Hackware 2 | . . 2 . Protection 4 | . . 3 1 Artifact . | . . . . Weapon 22 | 2 7 12 1 Energy Gun . | . . . . Energy Cannon . | . . . . Ballistic Gun 19 | 2 5 11 1 Ballistic Cannon . | . . . . Launcher 2 | . 2 . . Special Weapon . | . . . . Impact Weapon . | . . . . Slashing Weapon 1 | . . 1 . Piercing Weapon . | . . . . Special Melee Weapon . | . . . . Unidentified Prototypes . | . . . . Parts Lost 9 | . 1 8 . Power 2 | . . 2 . Propulsion 4 | . 1 3 . Utility 1 | . . 1 . Weapon 2 | . . 2 . Highest Loss Streak 4 | . 1 4 . To Critical Strikes . | . . . . Average Slot Usage (%) 97 | . 92 99 100 Engine 11 | . 14 10 11 Treads 28 | . 21 33 33 Device 3 | . 10 . . Storage 12 | . 14 10 11 Processor 1 | . 3 . . Hackware 10 | . . 16 11 Protection 3 | . . 5 10 Ballistic Gun 23 | . 27 21 22 Naked Turns . | . . . . Heaviest Build 41 | 14 32 41 41 Greatest Support 69 | 40 46 69 63 Greatest Overweight (x) 1 | 1 1 . . Average Overweight (x) . | . . . . Largest Inventory Capacity 15 | 8 15 15 15 Average Capacity 14 | 7 13 14 15 Most Carried 15 | 5 15 15 14 Average Carried 12 | 1 8 14 13 Final Capacity 15 | 8 15 15 15 Final Carried 14 | 1 14 14 14 Class Distribution -------------------- 44% | Scavenger-Mutant 35% | Mutant 19% | Hacker-Mutant Dominant Class ---------------- Mutant | -10/Materials Scavenger-Mutant | -9/Materials Scavenger-Mutant | -9/Storage Resources | -11 -10 -9 -9 ----------- Run | Yrd Mat Mat Sto Matter Collected 2561 | 282 561 1488 230 Remotely . | . . . . Salvage Created 3679 | 76 947 2089 567 Parts 223 | 6 56 133 28 Haulers Intercepted 6 | . 2 4 . Recyclers Shooed 6 | 1 3 2 . Parts Field Recycled . | . . . . Retrieved Matter . | . . . . Parts Self-Destructed . | . . . . Prevented . | . . . . Kills | -11 -10 -9 -9 ------- Run | Yrd Mat Mat Sto Combat Hostiles Destroyed 68 | . 12 44 12 Guns 68 | . 12 44 12 Classes Destroyed 12 | 2 6 4 . Worker 3 | . . 2 1 Builder 1 | . 1 . . Tunneler 1 | 1 . . . Hauler 6 | . 2 4 . Recycler 8 | 1 5 1 1 Operator 3 | . 1 2 . Watcher 9 | . 3 5 1 Swarmer 18 | . 6 10 2 Grunt 35 | . 6 21 8 Brawler 1 | . . 1 . Duelist 2 | . . 2 . Sentry 12 | . . 10 2 Best Kill Streak 7 | 2 5 7 6 Combat Bots Only 5 | . 3 5 5 Max Kills in Single Turn 2 | 1 1 2 2 Gunslinging 1 | . . 1 1 Exploded . | . . . . Melee . | . . . . Uniques/NPCs Destroyed . | . . . . Combat | -11 -10 -9 -9 -------- Run | Yrd Mat Mat Sto Hostile Shots Fired 428 | . 89 296 43 Missed 119 | . 23 88 8 Damage Taken 3497 | . 644 2414 439 Core 532 | . 125 339 68 Absorbed by Shields . | . . . . Regen/Repaired (Parts) 493 | . 80 413 . Core Remaining (%) 75 | 100 50 . . Volleys Fired 285 | 3 71 181 30 Largest 2 | 2 2 2 2 Hottest 46 | 40 46 46 46 Shots Fired 566 | 6 138 362 60 Gun 561 | 6 133 362 60 Cannon . | . . . . Launcher 5 | . 5 . . Special . | . . . . Kinetic 561 | 6 133 362 60 Thermal . | . . . . Explosive 5 | . 5 . . Electromagnetic . | . . . . Robot Hit Streak 16 | 2 7 16 13 Robot Miss Streak 6 | 1 6 4 4 Penetration Max . | . . . . Secondary Targets 12 | . 3 6 3 Max Gunslinging Chain 1 | . 1 1 1 Shots Hit Robots 347 | 4 70 235 38 Core Hits 154 | 4 42 88 20 Critical Kills 2 | . 1 1 . Critical Parts Destroyed 2 | . . 2 . Critical Strikes 5 | . 1 4 . Destroy 5 | . 1 4 . Melee Attacks . | . . . . Impact . | . . . . Slashing . | . . . . Piercing . | . . . . Sneak Attacks . | . . . . Combat Hostiles . | . . . . Follow-up Attacks . | . . . . Damage Inflicted 5163 | 52 832 3709 570 Guns 5114 | 52 788 3704 570 Cannons . | . . . . Explosions 44 | . 44 . . Melee . | . . . . Ramming 5 | . . 5 . Kinetic 5114 | 52 788 3704 570 Thermal . | . . . . Explosive 44 | . 44 . . Electromagnetic . | . . . . Impact . | . . . . Slashing . | . . . . Piercing . | . . . . Highest Corruption 4 | . 4 . . Average Corruption 3 | . 3 . . Corruption Purged . | . . . . Corruption Blocked . | . . . . Effects 44 | . 44 . . Message Errors 9 | . 9 . . Matter Fused 12 | . 12 . . Heat Flow Errors 6 | . 6 . . Energy Discharges 3 | . 3 . . Parts Fused 2 | . 2 . . Data Loss (minor) 7 | . 7 . . Data Loss (major) 2 | . 2 . . Misfires 1 | . 1 . . Alerts 2 | . 2 . . Overload Shots . | . . . . Overflow Damage . | . . . . Projectiles . | . . . . Explosions . | . . . . Melee . | . . . . Knockbacks . | . . . . Impact . | . . . . Kinetic . | . . . . Secondary . | . . . . Self-Inflicted Damage . | . . . . Shots . | . . . . Rammed 2 | . . 2 . Targets Rammed 2 | . . 2 . Kicked . | . . . . Crushed . | . . . . Highest Temperature 187 | . 187 44 9 Average Temperature 28 | . 56 12 3 Received Heat Transfer 1200 | . 165 816 219 Siege Activations . | . . . . Robots Corrupted . | . . . . Combat Hostiles . | . . . . Parts Fried . | . . . . Impact Corruptions . | . . . . Robots Melted . | . . . . Combat Hostiles . | . . . . Parts Melted . | . . . . Heat Transferred . | . . . . Parts Sabotaged . | . . . . Parts Stolen . | . . . . Parts Stripped . | . . . . Power Chain Reactions . | . . . . Alert | -11 -10 -9 -9 ------- Run | Yrd Mat Mat Sto Peak Influence 744 | 10 222 744 686 Initial 245 | . 6 . 245 Average 266 | 4 40 390 401 Maximum Alert Level 3 | . 1 3 2 Low Security (%) 47 | 100 98 21 . Level 1 20 | . 1 28 55 Level 2 27 | . . 43 44 Level 3 4 | . . 7 . Level 4 . | . . . . Level 5 . | . . . . High Security . | . . . . Max Security . | . . . . Squads Dispatched 14 | . 3 8 3 Investigation 6 | . 1 5 . Extermination . | . . . . Reinforcement 7 | . 2 2 3 Assault 1 | . . 1 . Garrison . | . . . . Intercept . | . . . . Searches Triggered . | . . . . Construction Impeded . | . . . . Haulers Reinforced . | . . . . Active Scanning Responses . | . . . . Cargo Convoy Interrupts . | . . . . Stealth | -11 -10 -9 -9 --------- Run | Yrd Mat Mat Sto Distress Signals 4 | . 1 1 2 Communications Jammed . | . . . . Distress Signals . | . . . . Times Spotted 109 | . 22 63 24 Peak Tracking Total 7 | . 5 7 6 Tactical Retreats 5 | . . 2 3 Traps | -11 -10 -9 -9 ------- Run | Yrd Mat Mat Sto Traps Triggered 4 | . 3 1 . Indirectly . | . . . . Trap Hack Attempts . | . . . . Triggered . | . . . . Disarmed . | . . . . Reprogrammed . | . . . . Reused . | . . . . Traps Extracted . | . . . . Installed . | . . . . Triggered . | . . . . Machines | -11 -10 -9 -9 ---------- Run | Yrd Mat Mat Sto Machines Disabled 4 | . 1 3 . Max in Single Turn 1 | . 1 1 . Machines Repaired . | . . . . Machines Dismantled . | . . . . Machines Sabotaged . | . . . . Overloaded Fab Kills . | . . . . Hacking | -11 -10 -9 -9 --------- Run | Yrd Mat Mat Sto Machines Accessed 19 | . 5 13 1 Terminals 11 | . 3 7 1 Fabricators . | . . . . Repair Stations 3 | . 1 2 . Recycling Units 3 | . 1 2 . Scanalyzers 2 | . . 2 . Garrison Access . | . . . . Total Hacks 47 | . 8 38 1 Successful 39 | . 6 32 1 Failed 8 | . 2 6 . Catastrophic . | . . . . Database Lockouts . | . . . . Manual . | . . . . Terminals 16 | . 3 12 1 Fabricators . | . . . . Repair Stations 14 | . 3 11 . Recycling Units 6 | . 2 4 . Scanalyzers 11 | . . 11 . Garrison Access . | . . . . Terminal Hacks 10 | . 2 7 1 Prototype ID Bank 4 | . 1 2 1 Recycling Unit Index 1 | . . 1 . Unreport Threat 1 | . . 1 . Locate Traps 2 | . 1 1 . Dispatch Records 1 | . . 1 . Registered Components 1 | . . 1 . Fabricator Hacks . | . . . . Repair Station Hacks 13 | . 2 11 . Scan Component 7 | . 1 6 . Repair 6 | . 1 5 . Recycling Unit Hacks 5 | . 2 3 . Report Inventory 3 | . 1 2 . Retrieve Components 2 | . 1 1 . Scanalyzer 11 | . . 11 . Insert Component 6 | . . 6 . Analyze 5 | . . 5 . Garrison Access Hacks . | . . . . Unauthorized Hacks . | . . . . Terminals . | . . . . Fabricators . | . . . . Repair Stations . | . . . . Recycling Units . | . . . . Scanalyzers . | . . . . Garrison Access . | . . . . Data Cores Recovered . | . . . . Used . | . . . . Hacking Detections 9 | . 1 7 1 Full Trace Events 5 | . 1 4 . Feedback Events . | . . . . Feedback Blocked . | . . . . Robot Schematics Acquired . | . . . . Robots Built . | . . . . Authchips . | . . . . Time . | . . . . Total Robot Build Rating . | . . . . Part Schematics Acquired 4 | . . 4 . Parts Built . | . . . . Authchips . | . . . . Time . | . . . . Total Part Build Rating . | . . . . Parts Repaired 6 | . 1 5 . Time 186 | . 13 173 . Parts Recycled . | . . . . Recycled Matter . | . . . . Retrieved Matter . | . . . . Retrieved Components 19 | . 10 9 . Parts Scanalyzed 4 | . . 4 . Part Schematics Acquired 4 | . . 4 . Parts Damaged . | . . . . Bothacking | -11 -10 -9 -9 ------------ Run | Yrd Mat Mat Sto Used RIF Installer . | . . . . Robots Hacked . | . . . . Non-combat . | . . . . Combat . | . . . . Robot Hacks Applied . | . . . . Relay Couplers Released . | . . . . Fabnet Peak Effective % . | . . . . Robots Rewired . | . . . . Allies Hacked . | . . . . Hacks Repelled . | . . . . Allies | -11 -10 -9 -9 -------- Run | Yrd Mat Mat Sto Total Allies . | . . . . Largest Group . | . . . . Highest-Rated Group . | . . . . Highest-Rated Ally . | . . . . Total Orders . | . . . . Ally Attacks . | . . . . Total Damage . | . . . . Kills . | . . . . Allies Corrupted . | . . . . Allies Melted . | . . . . Intel | -11 -10 -9 -9 ------- Run | Yrd Mat Mat Sto Robot Analysis Total . | . . . . Derelict Logs Recovered . | . . . . Drone Launches . | . . . . Drone Recoveries . | . . . . Exploration | -11 -10 -9 -9 ------------- Run | Yrd Mat Mat Sto Turns Passed 6483 | 110 2192 3764 417 Spaces Moved 2979 | 55 927 1805 192 Core 4 | 4 . . . Treads 2975 | 51 927 1805 192 Legs . | . . . . Wheels . | . . . . Hover . | . . . . Flight . | . . . . Fastest Speed 50 | 50 160 160 160 Average Speed 170 | 153 194 160 160 Slowest Speed 240 | 160 240 160 160 Overloaded Moves . | . . . . Propulsion Burnouts . | . . . . Robots Hopped . | . . . . Cave-ins Triggered . | . . . . Exploration Rate (%) 58 | 4 99 99 31 Regions Visited 3 Branch Regions 1 Pre-discovered Areas . | . . . . Known Exits Taken 2 | . 1 1 . Unknown Exits Taken 1 | 1 . . . Scrap Searched . | . . . . Spaces Dug 23 | . 23 . . Terrain Destroyed 39 | . 39 . . Melee . | . . . . Projectile . | . . . . AOE 39 | . 39 . . Terrain Rammed . | . . . . Walls Destroyed . | . . . . Machines Disabled . | . . . . Actions | -11 -10 -9 -9 --------- Run | Yrd Mat Mat Sto Total 3850 | 76 1202 2331 241 Wait 370 | 2 138 218 12 Move 2976 | 54 926 1804 192 Hop . | . . . . Pick Up 97 | 9 33 53 2 Fast Attach 4 | . . 4 . Attach 28 | 7 6 15 . Detach 1 | . 1 . . Swap 35 | . 9 22 4 Drop 52 | 1 18 32 1 Fire 285 | 3 71 181 30 Melee . | . . . . Ram . | . . . . Kick . | . . . . Crush 2 | . . 2 . Escape Stasis . | . . . . Rewire . | . . . . Trap . | . . . . Miscellaneous . | . . . . Route ------- -11/Scrapyard -10/Materials (discovered 4 exits: *Mat x3 / [*Min]) -9/Materials (discovered 6 exits: [*Mat x3] / [*Min] / *Sto x2) -9/Storage History --------- Turn | Location | Event 15 | -11/Scrapyard | Discovered new exit (range 15) 111 | -11/Scrapyard | Entered Materials 302 | -10/Materials | Build established: Mutant 437 | -10/Materials | Discovered new exit (range 16) 1044 | -10/Materials | Discovered new exit (range 8) 1465 | -10/Materials | Discovered new exit (range 16) 1949 | -10/Materials | Discovered new exit (range 12) 2071 | -10/Materials | Repaired Lgt. Treads 2290 | -10/Materials | Identified exit to Materials 2303 | -10/Materials | Entered another Materials area 2303 | -9/Materials | Evolved 2 slots: Propulsion x1, Utility x1 2640 | -9/Materials | Build established: Hacker-Mutant 2782 | -9/Materials | Discovered new exit (range 8) 3143 | -9/Materials | Lost 4 parts (2p2w) 3564 | -9/Materials | Core integrity fell below 50% 3610 | -9/Materials | Discovered new exit (range 5) 3997 | -9/Materials | Discovered new exit (range 3) 4203 | -9/Materials | Build established: Scavenger-Mutant 4226 | -9/Materials | Discovered new exit (range 11) 4465 | -9/Materials | Discovered new exit (range 7) 5104 | -9/Materials | Discovered new exit (range 16) 5503 | -9/Materials | First assault squad dispatched 5514 | -9/Materials | Repaired Imp. Treads 5544 | -9/Materials | Repaired Lgt. Treads 5617 | -9/Materials | Core integrity fell below 20% 5815 | -9/Materials | Repaired Hvy. Assault Rifle 5850 | -9/Materials | Repaired Hvy. Assault Rifle 5905 | -9/Materials | Repaired Hvy. Ion Engine 6067 | -9/Materials | Identified exit to Storage 6067 | -9/Materials | Entered Storage 6484 | -9/Storage | Destroyed by Y-45 Defender with Beam Rifle Last Messages --------------- 06433_ S-10 Pest destroyed. 06433_ Switching to secondary target: G-34 Mercenary. 06436_ K-01 Serf collects debris. 06436_ S-10 Pest destroyed. 06436_ Switching to secondary target: G-34 Mercenary. 06436_ G-34 Mercenary destroyed. 06437_ Acquired 14 matter. 06440_ K-01 Serf collects debris. 06442_ G-34 Mercenary destroyed. 06443_ K-01 Serf collects debris. 06450_ K-01 Serf destroyed. 06453_ Acquired 37 matter. 06457_ Acquired 44 matter. 06460_ R-06 Scavenger collects Ion Engine. 06476_ R-06 Scavenger destroyed. 06479_ W-16 Scout sends out distress signal. 06480_ Acquired 7 matter. 06481_ U-05 Engineer builds a Door. Map ----- +----------------------------------------------------+ | " " #???????????????????????????????????????????? | | "R" ##??????????????????????????????????????????? | | """ ########## ????????????????????????????????? | | % ???????????????????????????????? | | % "???????????????????????????????? | | ## #?????????????????????????????????????? | | ######### #?????????????????????????????????????? | | #????????????????????????????????????????????????? | | #?????????????????????? ???????????????????????? | | #?????????????????????? #??????????????????????? | | #?????????????????????? #??????????????????????? | | #?????????????????????#k +??????????????????????? | | #?????????????????????# #??????????????????????? | | #?????????????????????# #??????????????????????? | | #????"????????????????# #??????????????????????? | | #??""" ??? ???????????# #??????????????????????? | | # """" #? ???????????# #??????????????????????? | | + #? ???????????# #??????????????????????? | | ####### #? ???????????# #??????????????????????? | | ?????????? ??########## #??????????????????????? | | ?????????? ?? # #??????????????????????? | | ?????????? ?# """ """ # #??????????????????????? | | ?????????# ## """ """ #u #??????????????????????? | | ?????????# ## """ """!Y% #??????????????????????? | | ?????????# ## """ """ # ###### #?????????????? | | ?????????# ## """ """ # @ Y #?????????????? | | ?????????# ## # ###### #?????????????? | | ?????????# ## / + w #??????????????????????? | | ########## ##+##+#######/##??????????????????????? | | %! = ! #????? Y????????????????????????? | | ##########/#######?????" ????????????????????????? | | ???????? ?????????"" ????????????????????????? | | ??????"" #???????"" ????????????????????????? | | ?????#"T """" #?????? ????????????????????????? | | ?????#"" """" #???????""?????????????????????????? | | ?????### """" #????????"?????????????????????????? | | ??????? """" #????????"?????????????????????????? | | ???????########??????????????????????????????????? | | ?????????????????????????????????????????????????? | | ?????????????????????????????????????????????????? | | ?????????????????????????????????????????????????? | | ?????????????????????????????????????????????????? | | ?????????????????????????????????????????????????? | | ?????????????????????????????????????????????????? | | ?????????????????????????????????????????????????? | | | | | | | | | | | +----------------------------------------------------+ Best States ------------- Heat Dissipation 28 Energy Generation 14 Energy Capacity 280 Matter Stores 300 Matter Capacity 300 Sight Range 16 Terrain Scan Density 10 Armor Coverage 225 Evasion (%) 40 Recoil Reduction 3 Offensive Hacking 20 Item Schematics ----------------- Adv. Targeting Computer | -9/Materials | Scanalyzed Hacking Suite | -9/Materials | Scanalyzed Signal Interpreter | -9/Materials | Scanalyzed Med. Armor Plating | -9/Materials | Scanalyzed Robot Schematics ------------------ None Fabricated ------------ Nothing Alien Tech Used ----------------- None Achievements -------------- Everything Is Under Control Challenges ------------ None Game ------ Seed WeaponBehemothOptics Manual? 0 Play Time 00:48:44 Cumulative 13.8 hours Start 2024.04.05 @ 20:22:53 End 2024.04.05 @ 21:12:09 Sessions 1 Manual Loads 0 Difficulty Rogue Special Mode None Game No. 11 Rogue 11 Adventurer 0 Explorer 0 Win Type - Total 0 Types 0/0/0/0/0/0/0/0/0 Lore% 14 Gallery% 15 Achievement% 12 Wizard Run 0 Options --------- Layout 1 ASCII 0 Keyboard 0 Movement Mouse Keybinds 0 Fullscreen 1 Font 32/SmallcapsGlow Map View 50x35 Zoom Use 0% Tactical HUD 1 Map Filters NONE Filters NONE Steam 0 RUN: a0c63f8e-d234-4b6a-ab3b-aa3a1b92ca5c